bitfinex/quotes_BTCUSD_20240921
["timestamp","ask_amount","ask_price","bid_price","bid_amount"]
[1726887044819,0.260747,62993.0,62992.0,0.00072996]
[1726887045065,1.44012117,62993.0,62992.0,0.00072996]
[1726887045288,2.10374741,62993.0,62992.0,0.00072996]
[1726887045512,2.5786839,62993.0,62992.0,0.00072996]
[1726887046037,2.26387226,62993.0,62992.0,0.00072996]
[1726887046990,2.10078668,62993.0,62992.0,0.00072996]
[1726887047270,2.11478668,62993.0,62992.0,0.00172996]
[1726887050568,2.11413719,62993.0,62992.0,0.00172996]
[1726887053749,1.79664219,62993.0,62992.0,0.00172996]
[1726887054725,0.22041163,62986.0,62985.0,0.00165]
[1726887054928,0.61936494,62986.0,62985.0,0.00165]
[1726887055146,0.63308497,62986.0,62985.0,0.00165]
[1726887056021,0.64708497,62986.0,62985.0,0.00165]
[1726887061087,0.66557293,62986.0,62985.0,0.00165]
[1726887061314,0.66357293,62986.0,62985.0,0.00165]
[1726887061951,0.64957293,62986.0,62985.0,0.00165]
[1726887062387,0.66357293,62986.0,62985.0,0.00165]
[1726887062838,0.64957293,62986.0,62985.0,0.00165]
[1726887063286,0.66257293,62986.0,62985.0,0.00165]
[1726887063705,0.66314844,62986.0,62985.0,0.00165]
[1726887063947,0.66514844,62986.0,62985.0,0.00165]
[1726887068845,0.82391344,62986.0,62985.0,0.00165]
[1726887069720,1.34837025,62986.0,62985.0,0.00165]
[1726887069925,1.67943546,62986.0,62985.0,0.00165]
[1726887070128,0.11841163,62976.0,62975.0,0.10025]
[1726887070338,0.35488678,62976.0,62975.0,0.10025]
[1726887070524,0.36861966,62976.0,62975.0,0.10025]
[1726887071187,0.63167333,62976.0,62975.0,0.00165]
[1726887071415,0.93509295,62976.0,62975.0,0.00165]
[1726887071623,0.79246333,62976.0,62975.0,0.00165]
[1726887072052,0.79546333,62976.0,62975.0,0.00165]
[1726887072269,0.86097843,62976.0,62975.0,0.00165]
[1726887072506,0.70218843,62976.0,62975.0,0.00165]
[1726887072976,0.85797843,62976.0,62975.0,0.00165]
[1726887073199,0.88285755,62976.0,62975.0,0.00165]
[1726887073395,0.8888225,62976.0,62975.0,0.00165]
[1726887073883,0.88882137,62976.0,62975.0,0.00165]
[1726887075447,0.88182137,62976.0,62975.0,0.00165]
[1726887075672,0.89282137,62976.0,62975.0,0.00165]
[1726887076113,0.88182137,62976.0,62975.0,0.00165]
[1726887076587,0.89482137,62976.0,62975.0,0.00165]
[1726887077047,0.88182137,62976.0,62975.0,0.00165]
[1726887077507,0.89582137,62976.0,62975.0,0.00165]
[1726887078626,1.03833198,62976.0,62975.0,0.00165]
[1726887080232,0.87954198,62976.0,62975.0,0.00165]
[1726887082935,0.73703137,62976.0,62975.0,0.00165]
[1726887083826,0.72303137,62976.0,62975.0,0.00165]
[1726887084710,0.67655454,62976.0,62975.0,0.00165]
[1726887084926,0.72303182,62976.0,62975.0,0.00165]
[1726887085146,0.72303182,62976.0,62975.0,0.00265]
[1726887085147,0.73703182,62976.0,62975.0,0.00265]
[1726887085572,0.72303182,62976.0,62975.0,0.00165]
[1726887086237,0.73703182,62976.0,62975.0,0.00265]
[1726887088190,0.69055454,62976.0,62975.0,0.00265]
[1726887088191,0.67151627,62976.0,62975.0,0.00265]
[1726887088412,0.71818738,62976.0,62975.0,0.00265]
[1726887088872,0.69391678,62976.0,62975.0,0.00265]
[1726887089113,0.55130042,62976.0,62975.0,0.00265]
[1726887089824,0.53730042,62976.0,62975.0,0.00165]
[1726887090053,0.55130042,62976.0,62975.0,0.00265]
[1726887090295,0.55130042,62976.0,62975.0,0.09675]
[1726887090296,0.38824675,62976.0,62975.0,0.09675]
[1726887090538,0.36336763,62976.0,62975.0,0.09675]
[1726887091502,0.34936763,62976.0,62975.0,0.09575]
[1726887091742,0.35736763,62976.0,62975.0,0.09675]
[1726887092296,0.34936763,62976.0,62975.0,0.09575]
[1726887092544,0.34936763,62976.0,62975.0,0.09675]
[1726887092783,0.35736763,62976.0,62975.0,0.09675]
[1726887093520,0.47577926,62976.0,62975.0,0.00265]
[1726887094506,0.63883293,62976.0,62975.0,0.00265]
[1726887095954,0.64083293,62976.0,62975.0,0.00265]
[1726887096867,0.68732093,62976.0,62975.0,0.00265]
[1726887097314,0.5669093,62976.0,62975.0,0.00265]
[1726887097533,0.68532093,62976.0,62975.0,0.00265]
[1726887097945,0.68531745,62976.0,62975.0,0.00265]
[1726887099559,0.84585852,62976.0,62975.0,0.00265]
[1726887100474,0.68531745,62976.0,62975.0,0.00265]
[1726887100923,0.63882945,62976.0,62975.0,0.00265]
[1726887101147,0.64082945,62976.0,62975.0,0.00265]
[1726887101607,0.68733193,62976.0,62975.0,0.00265]
[1726887101849,0.68533193,62976.0,62975.0,0.00265]
[1726887102553,0.68733193,62976.0,62975.0,0.00265]
[1726887102765,0.68757792,62976.0,62975.0,0.00265]
[1726887103465,0.64107544,62976.0,62975.0,0.00265]
[1726887103694,0.6875825,62976.0,62975.0,0.00265]
[1726887106885,0.45170524,62976.0,62975.0,0.00265]
[1726887108378,0.68764709,62976.0,62975.0,0.00265]
[1726887109037,0.68564709,62976.0,62975.0,0.00265]
[1726887109256,0.68764709,62976.0,62975.0,0.00265]
[1726887114625,0.84628827,62976.0,62975.0,0.00265]
[1726887115030,0.68564709,62976.0,62975.0,0.00265]
[1726887115241,0.84630816,62976.0,62975.0,0.00265]
[1726887116945,0.68564709,62976.0,62975.0,0.00265]
[1726887117822,0.84633847,62976.0,62975.0,0.00265]
[1726887118663,0.84634199,62976.0,62975.0,0.00265]
[1726887119158,0.68564709,62976.0,62975.0,0.00265]
[1726887119590,0.84634082,62976.0,62975.0,0.00265]
[1726887121217,0.68564709,62976.0,62975.0,0.00265]
[1726887121881,0.63914003,62976.0,62975.0,0.00265]
[1726887122095,0.5207284,62976.0,62975.0,0.00265]
[1726887123458,0.5212432,62976.0,62975.0,0.00265]
[1726887123860,0.73047782,62976.0,62975.0,0.00265]
[1726887124763,0.56977205,62976.0,62975.0,0.00265]
[1726887126933,0.72856205,62976.0,62975.0,0.00265]
[1726887127323,0.56977205,62976.0,62975.0,0.00265]
[1726887128299,0.56929002,62976.0,62975.0,0.00265]
[1726887131431,0.88656213,62976.0,62975.0,0.00265]
[1726887131848,0.72808002,62976.0,62975.0,0.00265]
[1726887133131,1.04566102,62976.0,62975.0,0.00265]
[1726887133559,1.37602549,62976.0,62975.0,0.00265]
[1726887138265,1.05812064,62976.0,62975.0,0.00265]
[1726887138514,0.72794508,62976.0,62975.0,0.00265]
[1726887138969,0.11841163,62968.0,62965.0,0.0992]
[1726887139182,0.23583968,62967.0,62965.0,0.0992]
[1726887139398,0.37872647,62966.0,62965.0,0.0992]
[1726887139602,0.23583968,62966.0,62965.0,0.0992]
[1726887139813,0.24966357,62966.0,62965.0,0.0992]
[1726887140959,0.24966357,62966.0,62965.0,0.1002]
[1726887141459,0.39256341,62966.0,62965.0,0.0992]
[1726887141947,0.39256341,62966.0,62965.0,0.1002]
[1726887143127,0.39275372,62966.0,62965.0,0.1002]
[1726887144039,0.24981186,62966.0,62965.0,0.1002]
[1726887145463,0.24981186,62966.0,62965.0,0.0992]
[1726887145707,0.25681186,62966.0,62965.0,0.0992]
[1726887146937,0.24981186,62966.0,62965.0,0.0992]
[1726887147429,0.25481186,62966.0,62965.0,0.0992]
[1726887150409,0.25481186,62966.0,62965.0,0.1222]
[1726887152708,0.25481186,62966.0,62965.0,0.123025]
[1726887152990,0.25499316,62966.0,62965.0,0.123025]
[1726887157869,0.25500957,62966.0,62965.0,0.123025]
[1726887163139,0.25500957,62966.0,62965.0,0.12256387]
[1726887167702,0.25514845,62966.0,62965.0,0.12256387]
[1726887172714,0.25492394,62966.0,62965.0,0.12256387]
[1726887174007,0.24992394,62966.0,62965.0,0.12256387]
[1726887174220,0.25292394,62966.0,62965.0,0.12256387]
[1726887175533,0.24992394,62966.0,62965.0,0.12256387]
[1726887175952,0.24992394,62966.0,62965.0,0.12356387]
[1726887176615,0.25157394,62966.0,62965.0,0.12356387]
[1726887177482,0.25170421,62966.0,62965.0,0.12356387]
[1726887178645,0.25170421,62966.0,62965.0,0.024825]
[1726887182428,0.25170421,62966.0,62965.0,0.000825]
[1726887182660,0.25570421,62966.0,62965.0,0.000825]
[1726887183116,0.25170421,62966.0,62965.0,0.000825]
[1726887183575,0.25570421,62966.0,62965.0,0.000825]
[1726887185601,0.01947389,62966.0,62965.0,0.000825]
[1726887185803,0.25569796,62966.0,62965.0,0.000825]
[1726887187500,0.39866066,62966.0,62965.0,0.000825]
[1726887188488,0.39867101,62966.0,62965.0,0.000825]
[1726887189132,0.25569796,62966.0,62965.0,0.000825]
[1726887189343,0.39867145,62966.0,62965.0,0.000825]
[1726887189575,0.39867414,62966.0,62965.0,0.000825]
[1726887189999,0.25569796,62966.0,62965.0,0.000825]
[1726887190623,0.25553732,62966.0,62965.0,0.000825]
[1726887191017,0.35553732,62966.0,62965.0,0.000825]
[1726887200302,0.4984549,62966.0,62965.0,0.000825]
[1726887200535,0.35531633,62966.0,62965.0,0.000825]
[1726887205529,0.35038284,62966.0,62965.0,0.000825]
[1726887205755,0.35654616,62966.0,62965.0,0.000825]
[1726887209117,0.51959983,62966.0,62965.0,0.000825]
[1726887213423,0.56614044,62966.0,62965.0,0.000825]
[1726887215242,0.51959983,62966.0,62965.0,0.000825]
[1726887216857,0.56613975,62966.0,62965.0,0.000825]
[1726887217552,0.51959983,62966.0,62965.0,0.000825]
[1726887217766,0.56613921,62966.0,62965.0,0.000825]
[1726887218465,0.56813921,62966.0,62965.0,0.000825]
[1726887218678,0.52159983,62966.0,62965.0,0.000825]
[1726887218989,0.56811019,62966.0,62965.0,0.000825]
[1726887219202,0.51959983,62966.0,62965.0,0.000825]
[1726887220493,0.56611259,62966.0,62965.0,0.000825]
[1726887220727,0.52159983,62966.0,62965.0,0.000825]
[1726887220944,0.56811196,62966.0,62965.0,0.000825]
[1726887221261,0.52159983,62966.0,62965.0,0.000825]
[1726887221711,0.56611431,62966.0,62965.0,0.000825]
[1726887221950,0.56811431,62966.0,62965.0,0.000825]
[1726887222337,0.56611431,62966.0,62965.0,0.000825]
[1726887224956,0.56811431,62966.0,62965.0,0.000825]
[1726887225189,0.56764421,62966.0,62965.0,0.000825]
[1726887228470,0.72838647,62966.0,62965.0,0.000825]
[1726887229267,0.72832697,62966.0,62965.0,0.000825]
[1726887232659,0.5675755,62966.0,62965.0,0.000825]
[1726887232856,0.72832697,62966.0,62965.0,0.000825]
[1726887233547,0.5675755,62966.0,62965.0,0.000825]
[1726887234480,0.7243493,62966.0,62965.0,0.000825]
[1726887234684,0.5635755,62966.0,62965.0,0.000825]
[1726887236119,0.5735755,62966.0,62965.0,0.000825]
[1726887236814,0.5715755,62966.0,62965.0,0.000825]
[1726887237336,0.5735755,62966.0,62965.0,0.000825]
[1726887238447,0.5715755,62966.0,62965.0,0.000825]
[1726887239820,0.5735755,62966.0,62965.0,0.000825]
[1726887242206,0.73436767,62966.0,62965.0,0.000825]
[1726887242416,0.5735755,62966.0,62965.0,0.000825]
[1726887242597,0.73436947,62966.0,62965.0,0.000825]
[1726887243266,0.5735755,62966.0,62965.0,0.000825]
[1726887244836,0.5715755,62966.0,62965.0,0.000825]
[1726887245047,0.5735755,62966.0,62965.0,0.000825]
[1726887247910,0.5715755,62966.0,62965.0,0.000825]
[1726887248645,0.57039055,62966.0,62965.0,0.000825]
[1726887249766,0.57239055,62966.0,62965.0,0.000825]
[1726887251543,0.40733688,62966.0,62965.0,0.000825]
[1726887251771,0.3608224,62966.0,62965.0,0.096325]
[1726887252752,0.40377288,62966.0,62965.0,0.175825]
[1726887253011,0.37993657,62966.0,62965.0,0.31723663]
[1726887253244,0.35611143,62966.0,62965.0,0.198825]
[1726887253475,0.02685721,62966.0,62965.0,0.198825]
[1726887253971,0.09828516,62966.0,62965.0,0.198825]
[1726887255672,0.02685721,62966.0,62965.0,0.198825]
[1726887256380,0.07444257,62966.0,62965.0,0.198825]
[1726887258243,0.07443353,62966.0,62965.0,0.198825]
[1726887258473,0.02685721,62966.0,62965.0,0.198825]
[1726887289543,0.07441404,62966.0,62965.0,0.198825]
[1726887292482,0.07441404,62966.0,62965.0,0.36505441]
[1726887292483,0.02685721,62966.0,62965.0,0.36505441]
[1726887292702,0.001652,62975.0,62966.0,0.023]
[1726887292925,0.23811981,62973.0,62968.0,0.1148]
[1726887293150,0.001652,62975.0,62966.0,0.0782]
[1726887293151,0.001652,62975.0,62970.0,0.023]
[1726887293399,0.001652,62975.0,62972.0,0.14141163]
[1726887293624,0.001652,62975.0,62974.0,0.023]
[1726887295842,0.001652,62975.0,62974.0,0.024]
[1726887298821,0.001652,62975.0,62974.0,0.023]
[1726887299273,0.001652,62975.0,62974.0,0.025]
[1726887300788,0.001652,62975.0,62974.0,0.023]
[1726887303311,0.001652,62975.0,62966.0,0.19661163]
[1726887303312,0.12006363,62975.0,62968.0,0.0918]
[1726887303536,0.16761951,62975.0,62966.0,0.0782]
[1726887303754,0.04755588,62973.0,62966.0,0.0782]
[1726887303972,0.04755588,62972.0,62967.0,0.95282712]
[1726887304195,0.05539604,62972.0,62966.0,0.0782]
[1726887304649,0.05539604,62972.0,62967.0,0.023]
[1726887304650,0.00784016,62972.0,62967.0,0.023]
[1726887305528,0.01284016,62972.0,62967.0,0.023]
[1726887306433,0.00784016,62972.0,62967.0,0.023]
[1726887307967,0.01284016,62972.0,62967.0,0.023]
[1726887309387,0.00784016,62972.0,62967.0,0.023]
[1726887309840,0.002,62972.0,62967.0,0.023]
[1726887310060,0.00779109,62971.0,62967.0,0.023]
[1726887311385,0.00879109,62971.0,62967.0,0.023]
[1726887311561,0.001,62971.0,62967.0,0.023]
[1726887311771,0.00779107,62970.0,62967.0,0.023]
[1726887313374,0.04752677,62974.0,62967.0,0.023]
[1726887313621,0.00779104,62969.0,62967.0,0.023]
[1726887313843,0.04917877,62975.0,62967.0,0.023]
[1726887314059,0.00779116,62974.0,62967.0,0.023]
[1726887314297,0.05531793,62974.0,62967.0,0.023]
[1726887314983,0.00779116,62974.0,62967.0,0.023]
[1726887315208,0.01179116,62974.0,62967.0,0.023]
[1726887315846,0.00779116,62974.0,62967.0,0.023]
[1726887316083,0.01079116,62974.0,62967.0,0.023]
[1726887316520,0.05832044,62974.0,62967.0,0.023]
[1726887318326,0.01079116,62974.0,62967.0,0.023]
[1726887319203,0.00779116,62974.0,62967.0,0.023]
[1726887319644,0.05932044,62974.0,62967.0,0.023]
[1726887320062,0.05532044,62974.0,62967.0,0.023]
[1726887320513,0.04752928,62973.0,62967.0,0.023]
[1726887320715,0.05529033,62973.0,62966.0,0.023825]
[1726887322262,0.05629033,62973.0,62966.0,0.023825]
[1726887322985,0.04752928,62972.0,62966.0,0.023825]
[1726887323457,0.007761,62971.0,62966.0,0.023825]
[1726887323681,0.04852928,62973.0,62966.0,0.023825]
[1726887323920,0.00776098,62970.0,62966.0,0.023825]
[1726887324157,0.04752928,62972.0,62966.0,0.023825]
[1726887324393,0.00776096,62969.0,62966.0,0.023825]
[1726887324619,0.07129392,62974.0,62966.0,0.023825]
[1726887324620,0.04752928,62973.0,62966.0,0.023825]
[1726887325122,0.00776103,62972.0,62966.0,0.023825]
[1726887325599,0.00776103,62972.0,62966.0,0.024825]
[1726887326287,0.05529031,62972.0,62966.0,0.024825]
[1726887326533,0.05529031,62972.0,62966.0,0.023825]
[1726887326758,0.00776103,62972.0,62966.0,0.023825]
[1726887327269,0.05529031,62972.0,62966.0,0.023825]
[1726887327955,0.05929031,62972.0,62966.0,0.023825]
[1726887329512,0.01176103,62972.0,62966.0,0.023825]
[1726887331988,0.05929031,62972.0,62966.0,0.023825]
[1726887332445,0.05529031,62972.0,62966.0,0.023825]
[1726887332920,0.00976103,62972.0,62966.0,0.023825]
[1726887333371,0.05729031,62972.0,62966.0,0.023825]
[1726887334093,0.05529031,62972.0,62966.0,0.023825]
[1726887334997,0.95282712,62967.0,62966.0,0.000825]
[1726887335252,0.24110735,62967.0,62966.0,0.000825]
[1726887335478,0.24886306,62967.0,62966.0,0.000825]
[1726887338418,0.25686306,62967.0,62966.0,0.001825]
[1726887338883,0.24886306,62967.0,62966.0,0.000825]
[1726887339113,0.25786306,62967.0,62966.0,0.001825]
[1726887340067,0.26241352,62967.0,62966.0,0.001825]
[1726887340315,0.25341352,62967.0,62966.0,0.023825]
[1726887340577,0.10284979,62967.0,62966.0,0.023825]
[1726887340825,0.07907375,62967.0,62966.0,0.023825]
[1726887341360,0.08707375,62967.0,62966.0,0.024825]
[1726887342023,0.07907375,62967.0,62966.0,0.023825]
[1726887342348,0.08507375,62967.0,62966.0,0.024825]
[1726887342784,0.06130201,62967.0,62966.0,0.024825]
[1726887343014,0.01375571,62967.0,62966.0,0.024825]
[1726887343759,0.01375571,62967.0,62966.0,0.023825]
[1726887343760,0.00775571,62967.0,62966.0,0.023825]
[1726887344004,0.002,62967.0,62966.0,0.023825]
[1726887344230,0.00975577,62967.0,62966.0,0.023825]
[1726887344482,0.002,62967.0,62966.0,0.023825]
[1726887344981,0.00775577,62967.0,62966.0,0.023825]
[1726887345209,0.0475463,62970.0,62966.0,0.023825]
[1726887345441,0.01175577,62967.0,62966.0,0.023825]
[1726887345683,0.004,62967.0,62966.0,0.023825]
[1726887345883,0.01175577,62967.0,62966.0,0.023825]
[1726887346667,0.00775577,62967.0,62966.0,0.023825]
[1726887347123,0.07131804,62971.0,62966.0,0.024825]
[1726887347124,0.0475463,62969.0,62966.0,0.024825]
[1726887347349,0.00775577,62967.0,62966.0,0.024825]
[1726887347565,0.0475463,62969.0,62966.0,0.024825]
[1726887348004,0.00775574,62968.0,62966.0,0.023825]
[1726887348237,0.05530204,62968.0,62966.0,0.023825]
[1726887349534,0.05533675,62968.0,62966.0,0.023825]
[1726887349952,0.05533677,62968.0,62966.0,0.023825]
[1726887350190,0.00775574,62968.0,62966.0,0.023825]
[1726887350421,0.05533677,62968.0,62966.0,0.023825]
[1726887351825,0.05533677,62968.0,62967.0,0.11841163]
[1726887352041,0.05533677,62968.0,62967.0,0.14141163]
[1726887352042,0.00775574,62968.0,62967.0,0.14141163]
[1726887352492,0.00940574,62968.0,62967.0,0.14141163]
[1726887353212,0.00940574,62968.0,62967.0,0.14441163]
[1726887353909,0.05698677,62968.0,62967.0,0.14441163]
[1726887354360,0.05698677,62968.0,62967.0,0.026]
[1726887354585,0.00940574,62968.0,62967.0,0.026]
[1726887354812,0.05698711,62968.0,62967.0,0.026]
[1726887355955,0.05698711,62968.0,62966.0,0.023825]
[1726887356175,0.00940574,62968.0,62966.0,0.023825]
[1726887356398,0.05698711,62968.0,62966.0,0.023825]
[1726887356904,0.05698711,62968.0,62967.0,0.024]
[1726887357351,0.05698711,62968.0,62966.0,0.023825]
[1726887357584,0.05898711,62968.0,62966.0,0.023825]
[1726887359012,0.05698711,62968.0,62966.0,0.023825]
[1726887359144,0.05698711,62968.0,62967.0,0.024]
[1726887359590,0.05698711,62968.0,62966.0,0.023825]
[1726887359768,0.05698819,62968.0,62966.0,0.023825]
[1726887359968,0.05898819,62968.0,62966.0,0.023825]
[1726887362365,0.05698819,62968.0,62966.0,0.023825]
[1726887362810,0.05698819,62968.0,62966.0,0.024825]
[1726887363259,0.05698819,62968.0,62966.0,0.023825]
[1726887363476,0.05698819,62968.0,62966.0,0.024825]
[1726887363934,0.00940574,62968.0,62966.0,0.024825]
[1726887364185,0.00940574,62968.0,62967.0,0.0261759]
[1726887364380,0.05698819,62968.0,62967.0,0.0261759]
[1726887364611,0.00940574,62968.0,62967.0,0.0261759]
[1726887365346,0.00940574,62968.0,62967.0,0.024]
[1726887369545,0.00940574,62968.0,62966.0,0.023825]
[1726887370009,0.00940574,62968.0,62967.0,0.024]
[1726887371156,0.00940574,62968.0,62967.0,0.14458754]
[1726887372504,0.00940574,62968.0,62967.0,0.14758754]
[1726887374034,0.00940574,62968.0,62967.0,0.026]
[1726887384169,0.05698518,62968.0,62967.0,0.026]
[1726887384760,0.00940574,62968.0,62967.0,0.026]
[1726887385205,0.05698518,62968.0,62967.0,0.026]
[1726887386083,0.00940574,62968.0,62967.0,0.026]
[1726887386308,0.08077491,62968.0,62967.0,0.026]
[1726887386735,0.00940574,62968.0,62967.0,0.026]
[1726887386967,0.05703485,62968.0,62967.0,0.026]
[1726887387237,0.00940574,62968.0,62967.0,0.026]
[1726887388151,0.08077491,62968.0,62967.0,0.026]
[1726887388587,0.00940574,62968.0,62967.0,0.026]
[1726887391710,0.05704644,62968.0,62966.0,0.023825]
[1726887391911,0.0476407,62967.0,62966.0,0.023825]
[1726887392373,0.05534391,62967.0,62966.0,0.023825]
[1726887392590,0.00770321,62967.0,62966.0,0.023825]
[1726887394083,0.05534391,62967.0,62966.0,0.025825]
[1726887394535,0.05534391,62967.0,62966.0,0.023825]
[1726887395425,0.05534391,62967.0,62966.0,0.026825]
[1726887396763,0.0553458,62967.0,62966.0,0.026825]
[1726887397870,0.05534571,62967.0,62966.0,0.026825]
[1726887398342,0.00770321,62967.0,62966.0,0.026825]
[1726887398589,0.05534571,62967.0,62966.0,0.026825]
[1726887399274,0.00770321,62967.0,62966.0,0.026825]
[1726887399944,0.00770321,62967.0,62966.0,0.023825]
[1726887400188,0.05534571,62967.0,62966.0,0.023825]
[1726887400403,0.05534571,62967.0,62966.0,0.024825]
[1726887402413,0.07916696,62967.0,62966.0,0.024825]
[1726887402854,0.00770321,62967.0,62966.0,0.024825]
[1726887405342,0.07916696,62967.0,62966.0,0.024825]
[1726887405557,0.00770321,62967.0,62966.0,0.024825]
[1726887407647,0.05535119,62967.0,62966.0,0.024825]
[1726887407862,0.00770321,62967.0,62966.0,0.024825]
[1726887408081,0.07917523,62967.0,62966.0,0.024825]
[1726887408533,0.00770321,62967.0,62966.0,0.024825]
[1726887408966,0.07917523,62967.0,62966.0,0.024825]
[1726887409189,0.00770321,62967.0,62966.0,0.024825]
[1726887410096,0.05535325,62967.0,62966.0,0.024825]
[1726887410348,0.00770321,62967.0,62966.0,0.024825]
[1726887412188,0.00935321,62967.0,62966.0,0.024825]
[1726887415874,0.08083166,62967.0,62966.0,0.024825]
[1726887416086,0.00935321,62967.0,62966.0,0.024825]
[1726887416292,0.08083166,62967.0,62966.0,0.024825]
[1726887419399,0.25436208,62967.0,62966.0,0.024825]
[1726887419616,0.34966668,62967.0,62966.0,0.024825]
[1726887420277,0.34966668,62967.0,62966.0,0.023825]
[1726887420498,0.35266668,62967.0,62966.0,0.023825]
[1726887421133,0.34973229,62967.0,62966.0,0.023825]
[1726887421345,0.35073229,62967.0,62966.0,0.023825]
[1726887423807,0.34973229,62967.0,62966.0,0.023825]
[1726887424943,0.34973229,62967.0,62966.0,0.026825]
[1726887426029,0.3495982,62967.0,62966.0,0.026825]
[1726887431694,0.4468982,62967.0,62966.0,0.026825]
[1726887431900,0.35159015,62967.0,62966.0,0.026825]
[1726887433256,0.35159015,62967.0,62966.0,0.023825]
[1726887433461,0.47100178,62967.0,62966.0,0.000825]
[1726887434100,0.47000178,62967.0,62966.0,0.000825]
[1726887434316,0.47300178,62967.0,62966.0,0.000825]
[1726887434949,0.47000178,62967.0,62966.0,0.000825]
[1726887435160,0.47400178,62967.0,62966.0,0.000825]
[1726887436167,0.73705545,62967.0,62966.0,0.000825]
[1726887436576,0.73305545,62967.0,62966.0,0.000825]
[1726887436985,0.73605545,62967.0,62966.0,0.000825]
[1726887437408,0.73305545,62967.0,62966.0,0.000825]
[1726887437758,0.74605545,62967.0,62966.0,0.001825]
[1726887440419,0.8887059,62967.0,62966.0,0.001825]
[1726887440663,0.88785919,62967.0,62966.0,0.001825]
[1726887441090,0.88785919,62967.0,62966.0,0.000825]
[1726887441091,0.75644756,62967.0,62966.0,0.000825]
[1726887441305,0.87485919,62967.0,62966.0,0.000825]
[1726887441524,0.88785919,62967.0,62966.0,0.001825]
[1726887443307,0.74520874,62967.0,62966.0,0.001825]
[1726887450511,0.74702481,62967.0,62966.0,0.001825]
[1726887455406,0.74702905,62967.0,62966.0,0.001825]
[1726887455626,0.88955927,62967.0,62966.0,0.001825]
[1726887456584,0.88956484,62967.0,62966.0,0.001825]
[1726887460341,1.09066846,62967.0,62966.0,0.001825]
[1726887460596,0.8893118,62967.0,62966.0,0.001825]
[1726887461331,0.74676432,62967.0,62966.0,0.001825]
[1726887461812,0.88931834,62967.0,62966.0,0.001825]
[1726887462033,0.8893182,62967.0,62966.0,0.001825]
[1726887462232,0.74676432,62967.0,62966.0,0.001825]
[1726887465207,0.74685363,62967.0,62966.0,0.001825]
[1726887466561,0.79335624,62967.0,62966.0,0.001825]
[1726887469817,0.79344334,62967.0,62966.0,0.001825]
[1726887470239,0.67503171,62967.0,62966.0,0.001825]
[1726887470718,0.79344334,62967.0,62966.0,0.001825]
[1726887473989,0.69614334,62967.0,62966.0,0.001825]
[1726887475046,0.45032112,62967.0,62966.0,0.001825]
[1726887475267,0.69632864,62967.0,62966.0,0.001825]
[1726887477574,0.8569288,62967.0,62966.0,0.001825]
[1726887478488,0.69632864,62967.0,62966.0,0.001825]
[1726887480138,0.69874244,62967.0,62966.0,0.001825]
[1726887483866,0.41727714,62967.0,62966.0,0.001825]
[1726887484097,0.56511102,62967.0,62966.0,0.000825]
[1726887484335,0.51860841,62967.0,62966.0,0.000825]
[1726887484557,0.53160841,62967.0,62966.0,0.001825]
[1726887485035,0.35777453,62967.0,62966.0,0.000825]
[1726887485262,0.36777453,62967.0,62966.0,0.001825]
[1726887486957,0.35777453,62967.0,62966.0,0.000825]
[1726887487178,0.36677453,62967.0,62966.0,0.001825]
[1726887488315,0.25777453,62967.0,62966.0,0.092025]
[1726887488535,0.40866585,62967.0,62966.0,0.093025]
[1726887490041,0.40066585,62967.0,62966.0,0.092025]
[1726887490179,0.40766585,62967.0,62966.0,0.093025]
[1726887490627,0.40766585,62967.0,62966.0,0.092025]
[1726887490855,0.40066585,62967.0,62966.0,0.092025]
[1726887491030,0.40666585,62967.0,62966.0,0.093025]
[1726887492370,0.26377453,62967.0,62966.0,0.093025]
[1726887492590,0.40666585,62967.0,62966.0,0.093025]
[1726887493052,0.26377453,62967.0,62966.0,0.093025]
[1726887493747,0.40675659,62967.0,62966.0,0.093025]
[1726887496879,0.26390896,62967.0,62966.0,0.093025]
[1726887500545,0.26390896,62967.0,62966.0,0.001825]
[1726887505953,0.40673034,62967.0,62966.0,0.001825]
[1726887506696,0.26390896,62967.0,62966.0,0.001825]
[1726887508395,0.26368777,62967.0,62966.0,0.001825]
[1726887527544,0.26381202,62967.0,62966.0,0.001825]
[1726887529595,0.3103541,62967.0,62966.0,0.001825]
[1726887529974,0.31013842,62967.0,62966.0,0.001825]
[1726887530976,0.26359634,62967.0,62966.0,0.001825]
[1726887531101,0.31013721,62967.0,62966.0,0.001825]
[1726887534426,0.26359634,62967.0,62966.0,0.001825]
[1726887535082,0.31013503,62967.0,62966.0,0.001825]
[1726887535438,0.26359634,62967.0,62966.0,0.001825]
[1726887535876,0.31013359,62967.0,62966.0,0.001825]
[1726887536078,0.42443485,62967.0,62966.0,0.001825]
[1726887536437,0.42443335,62967.0,62966.0,0.001825]
[1726887537192,0.26359634,62967.0,62966.0,0.001825]
[1726887538766,0.25589313,62967.0,62966.0,0.001825]
[1726887538991,0.41673073,62967.0,62966.0,0.001825]
[1726887539933,0.41673339,62967.0,62966.0,0.001825]
[1726887540164,0.41673236,62967.0,62966.0,0.001825]
[1726887540441,0.25589313,62967.0,62966.0,0.001825]
[1726887540691,0.25589313,62967.0,62966.0,0.114925]
[1726887551438,0.25719352,62967.0,62966.0,0.114925]
[1726887551903,0.25719907,62967.0,62966.0,0.114925]
[1726887556276,0.25715072,62967.0,62966.0,0.114925]
[1726887557170,0.25715072,62967.0,62966.0,0.024825]
[1726887559413,0.25115072,62967.0,62966.0,0.023825]
[1726887561038,0.25115072,62967.0,62966.0,0.024825]
[1726887561039,0.25915072,62967.0,62966.0,0.024825]
[1726887561250,0.25796071,62967.0,62966.0,0.024825]
[1726887562115,0.24996071,62967.0,62966.0,0.023825]
[1726887562338,0.25796071,62967.0,62966.0,0.024825]
[1726887564481,0.24996071,62967.0,62966.0,0.023825]
[1726887564933,0.25796071,62967.0,62966.0,0.024825]
[1726887565419,0.36837234,62967.0,62966.0,0.023825]
[1726887565871,0.37437234,62967.0,62966.0,0.024825]
[1726887566101,0.3748994,62967.0,62966.0,0.024825]
[1726887576277,0.37584622,62967.0,62966.0,0.024825]
[1726887577079,0.37584622,62967.0,62966.0,0.001825]
[1726887577497,0.63789989,62967.0,62966.0,0.001825]
[1726887577951,0.63989989,62967.0,62966.0,0.001825]
[1726887578402,0.63389989,62967.0,62966.0,0.000825]